Cogmind - Beta 14 @@@ ROGUE MODE // 2024.10.13 @ 11:51:07 Player: Mallow Result: Destroyed by D-53 Grenadier with Mini Grenade Launcher Performance ------------- Evolutions (0) 0 Regions Visited (2) 400 Robots Destroyed (23) 115 Value Destroyed (364) 364 Prototype IDs (0) 0 Alien Tech Used (0) 0 Bonus (0) 0 TOTAL SCORE: 879 Bonus ------- None Cogmind --------- Core Integrity 0/250 Matter 209/300 Energy 250/250 System Corruption 0% Temperature Cool (39) Movement Core (250) Ox4 Location -10/Mines Parts ------- > --- POWER (1) -------- Ion Engine > --- PROPULSION (2) --- (None) > --- UTILITY (2) ------ Small Storage Unit > --- WEAPON (2) ------- Light Cannon > --- INVENTORY (8) ---- Light Ion Engine Experimental Sensor Array Light Armor Plating Light Assault Rifle Light Cannon Grenade Launcher Grenade Launcher Mining Claw Peak State ------------ > --- POWER ------------ Ion Engine > --- PROPULSION ------- Light Treads Light Treads > --- UTILITY ---------- Small Storage Unit Backup Plating I > --- WEAPON ----------- Light Cannon Grenade Launcher > --- INVENTORY -------- Light Ion Engine Experimental Sensor Array Light Armor Plating Light Assault Rifle Light Cannon Light Cannon Grenade Launcher Mining Claw [Rating: 8] Favorites ----------- Power Ion Engine Engine Ion Engine Propulsion Light Treads Treads Light Treads Utility Small Storage Unit Storage Small Storage Unit Protection Backup Plating I Weapon Light Cannon Ballistic Gun Light Assault Rifle Ballistic Cannon Light Cannon Launcher Grenade Launcher Build | -11 -10 -10 ------- Run | Yrd Mat Min Slots Evolved . | . . . Power . | . . . Propulsion . | . . . Utility . | . . . Weapon . | . . . Parts Attached 18 | 6 11 1 Power 2 | 1 1 . Engine 2 | 1 1 . Core . | . . . Reactor . | . . . Propulsion 3 | 2 1 . Treads 3 | 2 1 . Leg . | . . . Wheel . | . . . Hover . | . . . Flight . | . . . Utility 1 | 1 . . Device . | . . . Storage 1 | 1 . . Processor . | . . . Hackware . | . . . Protection . | . . . Artifact . | . . . Weapon 12 | 2 9 1 Energy Gun . | . . . Energy Cannon . | . . . Ballistic Gun 6 | 2 4 . Ballistic Cannon 5 | . 4 1 Launcher 1 | . 1 . Special Weapon . | . . . Impact Weapon . | . . . Slashing Weapon . | . . . Piercing Weapon . | . . . Special Melee Weapon . | . . . Unidentified Prototypes . | . . . Parts Lost 4 | . . 4 Power . | . . . Propulsion 2 | . . 2 Utility 1 | . . 1 Weapon 1 | . . 1 Highest Loss Streak 4 | . . 4 To Critical Strikes . | . . . Average Slot Usage (%) 96 | . 95 97 Engine 14 | . 14 14 Treads 27 | . 28 27 Storage 14 | . 14 14 Protection 10 | . 10 12 Ballistic Gun 11 | . 13 . Ballistic Cannon 14 | . 14 15 Launcher 2 | . . 12 Peak Build Rating 8 | 6 7 8 Average Rating 6 | 4 6 7 On Entrance 4 | . 6 7 Naked Turns . | . . . Heaviest Build 17 | 13 17 17 Greatest Support 40 | 40 40 40 Greatest Overweight (x) 1 | 1 . . Average Overweight (x) . | . . . Largest Inventory Capacity 8 | 8 8 8 Average Capacity 7 | 6 8 8 Most Carried 8 | 1 8 8 Average Carried 5 | . 5 7 Final Capacity 8 | 8 8 8 Final Carried 8 | 1 8 8 Class Distribution -------------------- 100% | Mutant Dominant Class ---------------- Mutant | -10/Materials Mutant | -10/Mines Resources | -11 -10 -10 ----------- Run | Yrd Mat Min Matter Collected 622 | 220 346 56 Remotely . | . . . Salvage Created 532 | . 532 . Parts 36 | . 36 . Haulers Intercepted 2 | . 2 . Recyclers Shooed . | . . . Parts Field Recycled . | . . . Retrieved Matter . | . . . Parts Self-Destructed . | . . . Prevented . | . . . Kills | -11 -10 -10 ------- Run | Yrd Mat Min Combat Hostiles Destroyed 15 | . 15 . Guns 12 | . 12 . Cannons 3 | . 3 . Classes Destroyed 6 | . 6 . Worker 2 | . 2 . Hauler 2 | . 2 . Operator 2 | . 2 . Watcher 2 | . 2 . Swarmer 9 | . 9 . Grunt 6 | . 6 . Best Kill Streak 5 | . 5 . Combat Bots Only 3 | . 3 . Max Kills in Single Turn 1 | . 1 . Gunslinging . | . . . Exploded . | . . . Melee . | . . . Uniques/NPCs Destroyed . | . . . Combat | -11 -10 -10 -------- Run | Yrd Mat Min Hostile Shots Fired 92 | . 76 16 Missed 22 | . 22 . Damage Taken 1185 | . 487 698 Core 258 | . 46 212 Absorbed by Shields . | . . . Core Remaining (%) 100 | 100 . . Volleys Fired 72 | . 66 6 Largest 2 | . 2 2 Hottest 70 | . 70 70 Shots Fired 144 | . 132 12 Gun 100 | . 100 . Cannon 43 | . 32 11 Launcher 1 | . . 1 Special . | . . . Kinetic 143 | . 132 11 Thermal . | . . . Explosive 1 | . . 1 Electromagnetic . | . . . Robot Hit Streak 8 | . 8 3 Robot Miss Streak 4 | . 4 2 Penetration Max . | . . . Secondary Targets 1 | . 1 . Max Gunslinging Chain 1 | . 1 . Shots Hit Robots 82 | . 76 6 Core Hits 34 | . 33 1 Critical Kills . | . . . Critical Parts Destroyed 1 | . 1 . Critical Strikes 2 | . 2 . Destroy 1 | . 1 . Blast 1 | . 1 . Melee Attacks . | . . . Impact . | . . . Slashing . | . . . Piercing . | . . . Sneak Attacks . | . . . Combat Hostiles . | . . . Follow-up Attacks . | . . . Damage Inflicted 1059 | . 919 140 Guns 636 | . 636 . Cannons 345 | . 259 86 Explosions 54 | . . 54 Melee . | . . . Ramming 24 | . 24 . Kinetic 981 | . 895 86 Thermal . | . . . Explosive 54 | . . 54 Electromagnetic . | . . . Impact . | . . . Slashing . | . . . Piercing . | . . . Highest Corruption . | . . . Average Corruption . | . . . Corruption Purged . | . . . Corruption Blocked . | . . . Overload Shots . | . . . Overflow Damage 41 | . 41 . Projectiles 41 | . 41 . Explosions . | . . . Melee . | . . . Knockbacks 6 | . 5 1 Impact . | . . . Kinetic 6 | . 5 1 Secondary . | . . . Self-Inflicted Damage . | . . . Shots . | . . . Rammed 5 | . 5 . Targets Rammed 5 | . 5 . Kicked . | . . . Crushed . | . . . Highest Temperature 144 | . 144 39 Average Temperature 30 | . 32 17 Received Heat Transfer 96 | . 96 . Siege Activations . | . . . Robots Corrupted . | . . . Combat Hostiles . | . . . Parts Fried . | . . . Impact Corruptions . | . . . Robots Melted . | . . . Combat Hostiles . | . . . Parts Melted . | . . . Heat Transferred . | . . . Parts Sabotaged . | . . . Parts Stolen . | . . . Parts Stripped . | . . . Power Chain Reactions . | . . . Alert | -11 -10 -10 ------- Run | Yrd Mat Min Peak Influence 315 | . 315 28 Initial 16 | . . 16 Average 124 | . 141 15 Maximum Alert Level 1 | . 1 . Low Security (%) 80 | 100 77 100 Level 1 19 | . 22 . Level 2 . | . . . Level 3 . | . . . Level 4 . | . . . Level 5 . | . . . High Security . | . . . Max Security . | . . . Squads Dispatched 3 | . 3 . Investigation 1 | . 1 . Extermination . | . . . Reinforcement 2 | . 2 . Assault . | . . . Garrison . | . . . Intercept . | . . . Searches Triggered . | . . . Construction Impeded . | . . . Haulers Reinforced . | . . . Active Scanning Responses . | . . . Cargo Convoy Interrupts . | . . . Stealth | -11 -10 -10 --------- Run | Yrd Mat Min Distress Signals 1 | . 1 . Communications Jammed . | . . . Distress Signals . | . . . Times Spotted 36 | . 32 4 Peak Tracking Total 4 | . 4 4 Tactical Retreats 2 | . 2 . Traps | -11 -10 -10 ------- Run | Yrd Mat Min Traps Triggered . | . . . Indirectly . | . . . Trap Hack Attempts . | . . . Triggered . | . . . Disarmed . | . . . Reprogrammed . | . . . Reused . | . . . Traps Extracted . | . . . Installed . | . . . Triggered . | . . . Machines | -11 -10 -10 ---------- Run | Yrd Mat Min Machines Disabled 1 | . 1 . Max in Single Turn 1 | . 1 . Machines Repaired . | . . . Machines Dismantled . | . . . Machines Sabotaged . | . . . Overloaded Fab Kills . | . . . Hacking | -11 -10 -10 --------- Run | Yrd Mat Min Machines Accessed 4 | . 4 . Terminals 3 | . 3 . Fabricators . | . . . Repair Stations 1 | . 1 . Recycling Units . | . . . Scanalyzers . | . . . Garrison Access . | . . . Total Hacks 6 | . 6 . Successful 3 | . 3 . Failed 3 | . 3 . Catastrophic 2 | . 2 . Database Lockouts . | . . . Manual 2 | . 2 . Terminals 3 | . 3 . Fabricators . | . . . Repair Stations 3 | . 3 . Recycling Units . | . . . Scanalyzers . | . . . Garrison Access . | . . . Terminal Hacks 1 | . 1 . Zone Layout 1 | . 1 . Fabricator Hacks . | . . . Repair Station Hacks 1 | . 1 . Refit 1 | . 1 . Recycling Unit Hacks . | . . . Scanalyzer . | . . . Garrison Access Hacks . | . . . Unauthorized Hacks 1 | . 1 . Terminals 1 | . 1 . Operators 1 | . 1 . Fabricators . | . . . Repair Stations . | . . . Recycling Units . | . . . Scanalyzers . | . . . Garrison Access . | . . . Data Cores Recovered . | . . . Used . | . . . Hacking Detections 3 | . 3 . Full Trace Events 1 | . 1 . Feedback Events . | . . . Feedback Blocked . | . . . Robot Schematics Acquired . | . . . Robots Built . | . . . Authchips . | . . . Time . | . . . Total Robot Build Rating . | . . . Part Schematics Acquired . | . . . Parts Built . | . . . Authchips . | . . . Time . | . . . Total Part Build Rating . | . . . Parts Repaired . | . . . Time . | . . . Parts Recycled . | . . . Recycled Matter . | . . . Retrieved Matter . | . . . Retrieved Components . | . . . Parts Scanalyzed . | . . . Part Schematics Acquired . | . . . Parts Damaged . | . . . Bothacking | -11 -10 -10 ------------ Run | Yrd Mat Min Used RIF Installer . | . . . Robots Hacked . | . . . Non-combat . | . . . Combat . | . . . Robot Hacks Applied . | . . . Relay Couplers Released . | . . . Fabnet Peak Effective % . | . . . Robots Rewired . | . . . Allies Hacked . | . . . Hacks Repelled . | . . . Allies | -11 -10 -10 -------- Run | Yrd Mat Min Total Allies . | . . . Largest Group . | . . . Highest-Rated Group . | . . . Highest-Rated Ally . | . . . Total Orders . | . . . Ally Attacks . | . . . Total Damage . | . . . Kills . | . . . Allies Corrupted . | . . . Allies Melted . | . . . Intel | -11 -10 -10 ------- Run | Yrd Mat Min Robot Analysis Total . | . . . Derelict Logs Recovered . | . . . Drone Launches . | . . . Drone Recoveries . | . . . Exploration | -11 -10 -10 ------------- Run | Yrd Mat Min Turns Passed 1979 | 68 1714 197 Spaces Moved 1057 | 41 905 111 Core 8 | 8 . . Treads 1049 | 33 905 111 Legs . | . . . Wheels . | . . . Hover . | . . . Flight . | . . . Fastest Speed 50 | 50 160 160 Average Speed 159 | 143 160 160 Slowest Speed 160 | 160 160 160 Overloaded Moves . | . . . Propulsion Burnouts . | . . . Robots Hopped . | . . . Cave-ins Triggered . | . . . Exploration Rate (%) 38 | 4 93 17 Regions Visited 2 Branch Regions 1 Pre-discovered Areas 1 | . . 1 Known Exits Taken . | . . . Unknown Exits Taken 2 | 1 1 . Scrap Searched 1 | . . 1 Spaces Dug . | . . . Terrain Destroyed 12 | . . 12 Melee . | . . . Projectile . | . . . AOE 12 | . . 12 Terrain Rammed . | . . . Walls Destroyed . | . . . Machines Disabled . | . . . Actions | -11 -10 -10 --------- Run | Yrd Mat Min Total 1212 | 47 1045 120 Wait 40 | . 40 . Move 1055 | 40 904 111 Hop . | . . . Pick Up 14 | 1 12 1 Fast Attach 6 | 6 . . Attach . | . . . Detach . | . . . Swap 12 | . 11 1 Drop 8 | . 7 1 Fire 72 | . 66 6 Melee . | . . . Ram . | . . . Kick . | . . . Crush 5 | . 5 . Escape Stasis . | . . . Rewire . | . . . Trap . | . . . Miscellaneous . | . . . Route ------- -11/Scrapyard -10/Materials (discovered 5 exits: [*Mat x3] / [*Min x2]) -10/Mines History --------- Turn | Location | Event 7 | -11/Scrapyard | Discovered new exit (range 15) 69 | -11/Scrapyard | Entered Materials 296 | -10/Materials | Discovered new exit (range 11) 317 | -10/Materials | Build established: Mutant 654 | -10/Materials | Discovered new exit (range 11) 775 | -10/Materials | Discovered new exit (range 12) 1144 | -10/Materials | Discovered new exit (range 13) 1399 | -10/Materials | Discovered new exit (range 15) 1783 | -10/Materials | Entered Mines 1784 | -10/Mines | Learned location of Storage (-7) 1865 | -10/Mines | Found a damaged Exp. Sensor Array with a note attached 1869 | -10/Mines | Found Prototype Device 1943 | -10/Mines | Assembled infested the area 1971 | -10/Mines | Core integrity fell below 50% 1979 | -10/Mines | Core integrity fell below 20% 1980 | -10/Mines | Destroyed by D-53 Grenadier with Mini Grenade Launcher Last Messages --------------- K-01 Serf collects debris. ALERT: Infestation in the mines, dispatching Demolisher response squad. K-01 Serf collects debris. C-30 ARC bursts open, deploying its payload. D-53 Grenadier unfolds itself. K-01 Serf destroyed. as-05013 sneak attacks. T-07 Excavator system corrupted by crushing effect. as-56836 destroyed. The unstable cave ceiling collapses. T-07 Excavator destroyed. D-53 Grenadier knocked back. Backup Plating I destroyed. as-05013 destroyed. Lgt. Treads destroyed. The unstable cave ceiling collapses. U-05 Engineer lays Concrete. Lgt. Cannon destroyed. U-05 Engineer lays Concrete. Lgt. Treads destroyed. Map ----- +----------------------------------------------------+ | ?????????????????????????????????????????????????? | | ?????????????????????????????????????????????????? | | ?????????????????????????????????????????????????? | | ???????????????###########???????????????????????? | | ??????????????## ##??????????????????????? | | ???????????#### ##?????????????????????? | | ???????????# ! ##????????????????????? | | ??????????# #### #????????????????????? | | ??????????## ##??## ##???????????????????? | | ???????????#######????### ##????????????####### | | ????????????????????????## ##??????????## # | | ?????????????????????????## ############ # | | ???????????????????????#### ## ! # | | ???????????????????????# ##!######### ## | | ???????????????????????# ### ###=#???????######? | | ???????????????????????# #####?#!#?????????????? | | ???????????????????????### #?????# #?????????????? | | ?????????????????????????# #?????# #######???????? | | ?????????????????????????# #?????# #???????? | | ????????????######????#### ####### ##### #???????? | | ????????????? #???## % % #?????????????? | | ?????????????? #??## d #######?????????????? | | ??????????????# #??# d ##??????????????????? | | ??????????????# #?## #??????????????????? | | ?????????????## u # #??????????????????? | | ?????????????# @ #??????????????????? | | ?????????????# #??????????????????? | | ?????????????# #??????????????????? | | ?????????????## ##### ##??????????????????? | | ??????????????? #???## ##???????????????????? | | ??????????????## #????#######????????????????????? | | ??????????????? ???????????????????????????????? | | ??????????????? ???????????????????????????????? | | ??????????????? ???????????????????????????????? | | ?????????????? ???????????????????????????????? | | ?????????????? ???????????????????????????????? | | ?????????????? ???????????????????????????????? | | ?????????????? ???????????????????????????????? | | ????????????? ???????????????????????????????? | | ????????????? ? ???????????????????????????????? | | ??????????????? ???????????????????????????????? | | ?????????????????????????????????????????????????? | | ?????????????????????????????????????????????????? | | ?????????????????????????????????????????????????? | | ?????????????????????????????????????????????????? | | ?????????????????????????????????????????????????? | | ?????????????????????????????????????????????????? | | ?????????????????????????????????????????????????? | | ?????????????????????????????????????????????????? | | ?????????????????????????????????????????????????? | +----------------------------------------------------+ Best States ------------- Heat Dissipation 25 Energy Generation 10 Energy Capacity 250 Matter Stores 300 Matter Capacity 300 Sight Range 16 Terrain Scan Density 10 Armor Coverage 80 Evasion (%) 40 Recoil Reduction 2 Item Schematics ----------------- None Robot Schematics ------------------ None Fabricated ------------ Nothing Alien Tech Used ----------------- None Achievements -------------- None Challenges ------------ None Game ------ Seed PlatingCoolantChronowheel Manual? 0 Play Time 00:11:19 Cumulative 54.8 hours Start 2024.10.13 @ 11:40:58 End 2024.10.13 @ 11:51:07 Sessions 1 Manual Loads 0 Difficulty Rogue Special Mode None Game No. 80 Rogue 80 Adventurer 0 Explorer 0 Win Type - Total 2 Types 2/0/0/0/0/0/0/0/0 Lore% 37 Gallery% 42 Achievement% 35 Wizard Run 0 Options --------- Layout 0 ASCII 0 Keyboard 0 Movement Arrows Keybinds 0 Fullscreen 2 Font 24/Smallcaps Map View 56x25 Zoom Use 62% Tactical HUD 0 Map Filters NONE Filters NONE Steam 1 RUN: e63cce88-fbce-4ff2-b23d-43205e3d8629